[Event "Queens Festival Europe 2022"]
[Site "Tornelo"]
[Date "2022.06.19"]
[Round "1.3"]
[White "Patel, Diah Dipal"]
[Black "Andries, Leia"]
[Result "0-1"]
[ECO "B26"]
[WhiteElo "1313"]
[BlackElo "1438"]
[Annotator "NA RC"]
[PlyCount "60"]
[EventDate "2022.06.19"]
[EventType "swiss"]
[EventCountry "NET"]
[SourceTitle "playchess.com"]
[Source "ChessBase"]
[SourceQuality "1"]
[TimeControl "180+2"]

1. e4 {[%emt 0:00:02]} c5 {[%emt 0:00:05]} 2. Nc3 {[%emt 0:00:04]} Nc6 {[%emt 0:00:03]} 3. g3 {[%emt 0:00:09]} g6 {[%emt 0:00:04]} 4. Bg2 {[%emt 0:00:03]} Bg7 {[%emt 0:00:04]} 5. d3 {[%emt 0:00:04]} d6 {[%emt 0:00:05]} 6. Be3 {[%emt 0:00:05]} e6 {[%emt 0:00:09]} 7. h3 {[%emt 0:00:08]} Nge7 {[%emt 0:00:03]} 8. Qg4 {[%emt 0:00:08]} b6 {[%emt 0:00:09]} 9. Nf3 {[%emt 0:00:07]} d5 {[%emt 0:00:06]} 10. O-O {[%emt 0:00:10]} d4 {[%emt 0:00:04]} 11. Ne2 {[%emt 0:00:36]} dxe3 {[%emt 0:00:03]} 12. fxe3 {[%emt 0:00:02]} Bxb2 {[%emt 0:00:02]} 13. Rab1 {[%emt 0:00:04]} Bg7 {[%emt 0:00:02]} 14. Ng5 {[%emt 0:00:03]} O-O {[%emt 0:00:09]} 15. Qh4 {[%emt 0:00:05]} h6 {[%emt 0:00:08]} 16. Nf3 {[%emt 0:00:30]} Bb7 {[%emt 0:00:08]} 17. g4 {[%emt 0:00:01]} Nc8 {[%emt 0:00:24]} 18. Qg3 {[%emt 0:00:08]} Nd6 {[%emt 0:00:08]} 19. h4 {[%emt 0:00:13]} Ne8 {[%emt 0:00:11]} 20. h5 {[%emt 0:00:03]} g5 {[%emt 0:00:04]} 21. Qh2 {[%emt 0:00:28]} Qc7 {[%emt 0:00:04]} 22. Qh3 {[%emt 0:00:04]} Nf6 {[%emt 0:00:09]} 23. d4 {[%emt 0:00:11]} cxd4 {[%emt 0:00:06]} 24. exd4 {[%emt 0:00:02]} Nxe4 {[%emt 0:00:03]} 25. Ne5 {[%emt 0:00:11]} Nxe5 {[%emt 0:00:05]} 26. dxe5 {[%emt 0:00:03]} Qxe5 {[%emt 0:00:06]} 27. Bxe4 {[%emt 0:00:02]} Qxe4 {[%emt 0:00:03]} 28. Qh2 {[%emt 0:00:05]} Bd4+ {[%emt 0:00:03]} 29. Rf2 {[%emt 0:00:05]} Bxf2+ {[%emt 0:00:02]} 30. Qxf2 {[%emt 0:00:01]} Qh1# {[%emt 0:00:02]} 0-1

[Event "Queens Festival Europe 2022"]
[Site "Tornelo"]
[Date "2022.06.19"]
[Round "1.4"]
[White "Kordzadze, Nino"]
[Black "Maksimovic, Suzana"]
[Result "1/2-1/2"]
[ECO "A07"]
[WhiteElo "2043"]
[BlackElo "2145"]
[Annotator "NA RC"]
[PlyCount "113"]
[EventDate "2022.06.19"]
[EventType "swiss"]
[EventCountry "NET"]
[SourceTitle "playchess.com"]
[Source "ChessBase"]
[SourceQuality "1"]
[TimeControl "180+2"]

1. g3 {[%emt 0:00:04]} d5 {[%emt 0:00:49]} 2. Bg2 {[%emt 0:00:02]} c6 {[%emt 0:00:03]} 3. Nf3 {[%emt 0:00:02]} Bg4 {[%emt 0:00:02]} 4. O-O {[%emt 0:00:01]} Nd7 {[%emt 0:00:01]} 5. d4 {[%emt 0:00:03]} e6 {[%emt 0:00:05]} 6. b3 {[%emt 0:00:02]} Ngf6 {[%emt 0:00:05]} 7. Bb2 {[%emt 0:00:01]} Be7 {[%emt 0:00:02]} 8. Nbd2 {[%emt 0:00:01]} O-O {[%emt 0:00:01]} 9. h3 {[%emt 0:00:02]} Bh5 {[%emt 0:00:03]} 10. g4 {[%emt 0:00:04]} Bg6 {[%emt 0:00:02]} 11. Ne5 {[%emt 0:00:02]} a5 {[%emt 0:00:11]} 12. a4 {[%emt 0:00:04]} Nxe5 {[%emt 0:00:07]} 13. dxe5 {[%emt 0:00:01]} Nd7 {[%emt 0:00:01]} 14. e3 {[%emt 0:00:07]} f6 {[%emt 0:00:03]} 15. Nf3 {[%emt 0:00:22]} fxe5 {[%emt 0:00:07]} 16. Nxe5 {[%emt 0:00:09]} Nxe5 {[%emt 0:00:02]} 17. Bxe5 {[%emt 0:00:04]} Bf6 {[%emt 0:00:01]} 18. Bd4 {[%emt 0:00:25]} e5 {[%emt 0:00:06]} 19. Bc5 {[%emt 0:00:05]} Re8 {[%emt 0:00:02]} 20. Rb1 {[%emt 0:00:28]} b6 {[%emt 0:00:03]} 21. Ba3 {[%emt 0:00:04]} e4 {[%emt 0:00:05]} 22. Qe2 {[%emt 0:00:18]} Qc7 {[%emt 0:00:04]} 23. Rfd1 {[%emt 0:00:11]} Rad8 {[%emt 0:00:10]} 24. Bb2 {[%emt 0:00:08]} Bxb2 {[%emt 0:00:04]} 25. Rxb2 {[%emt 0:00:01]} Qe5 {[%emt 0:00:04]} 26. Rbb1 {[%emt 0:00:06]} h5 {[%emt 0:00:02]} 27. Qa6 {[%emt 0:00:16]} hxg4 {[%emt 0:00:06]} 28. hxg4 {[%emt 0:00:02]} Rb8 {[%emt 0:00:07]} 29. Qa7 {[%emt 0:00:07]} Qg5 {[%emt 0:00:34]} 30. Qd7 {[%emt 0:00:03]} Rbc8 {[%emt 0:00:09]} 31. c4 {[%emt 0:00:04]} Red8 {[%emt 0:00:01]} 32. Qb7 {[%emt 0:00:03]} Qxg4 {[%emt 0:00:03]} 33. cxd5 {[%emt 0:00:03]} cxd5 {[%emt 0:00:02]} 34. Rxd5 {[%emt 0:00:03]} Bf7 {[%emt 0:00:06]} 35. Rxd8+ {[%emt 0:00:07]} Rxd8 {[%emt 0:00:02]} 36. Qxb6 {[%emt 0:00:20]} Rd2 {[%emt 0:00:08]} 37. Qb8+ {[%emt 0:00:03]} Kh7 {[%emt 0:00:04]} 38. Qh2+ {[%emt 0:00:02]} Kg8 {[%emt 0:00:03]} 39. Rc1 {[%emt 0:00:03]} Rd1+ {[%emt 0:00:07]} 40. Rxd1 {[%emt 0:00:02]} Qxd1+ {[%emt 0:00:02]} 41. Bf1 {[%emt 0:00:02]} Bxb3 {[%emt 0:00:03]} 42. Qb8+ {[%emt 0:00:04]} Kh7 {[%emt 0:00:02]} 43. Qh2+ {[%emt 0:00:01]} Kg8 {[%emt 0:00:02]} 44. Qb8+ {[%emt 0:00:02]} Kf7 {[%emt 0:00:02]} 45. Qb7+ {[%emt 0:00:03]} Kf6 {[%emt 0:00:02]} 46. Qxe4 {[%emt 0:00:01]} Bxa4 {[%emt 0:00:03]} 47. Qh4+ {[%emt 0:00:04]} Kf7 {[%emt 0:00:02]} 48. Qc4+ {[%emt 0:00:02]} Kf8 {[%emt 0:00:02]} 49. Qf4+ {[%emt 0:00:02]} Kg8 {[%emt 0:00:02]} 50. Qb8+ {[%emt 0:00:03]} Kh7 {[%emt 0:00:03]} 51. Qh2+ {[%emt 0:00:01]} Kg8 {[%emt 0:00:02]} 52. Qb8+ {[%emt 0:00:02]} Kh7 {[%emt 0:00:02]} 53. Qh2+ {[%emt 0:00:02]} Kg6 {[%emt 0:00:02]} 54. Qg3+ {[%emt 0:00:02]} Kf6 {[%emt 0:00:03]} 55. Qh4+ {[%emt 0:00:01]} Kf7 {[%emt 0:00:03]} 56. Qf4+ {[%emt 0:00:02]} Kg8 {[%emt 0:00:02]} 57. Qb8+ {[%emt 0:00:03]} 1/2-1/2

[Event "Queens Festival Europe 2022"]
[Site "Tornelo"]
[Date "2022.06.19"]
[Round "1.4"]
[White "Deak-Sala, Emilia"]
[Black "Bordin, Silvia"]
[Result "1/2-1/2"]
[ECO "C54"]
[WhiteElo "1883"]
[BlackElo "1991"]
[Annotator "NA RC"]
[PlyCount "120"]
[EventDate "2022.06.19"]
[EventType "swiss"]
[EventCountry "NET"]
[SourceTitle "playchess.com"]
[Source "ChessBase"]
[SourceQuality "1"]
[TimeControl "180+2"]

1. e4 {[%emt 0:00:02]} e5 {[%emt 0:00:05]} 2. Nf3 {[%emt 0:00:02]} Nc6 {[%emt 0:00:02]} 3. Bc4 {[%emt 0:00:02]} Bc5 {[%emt 0:00:01]} 4. d3 {[%emt 0:00:02]} Nf6 {[%emt 0:00:03]} 5. c3 {[%emt 0:00:02]} d6 {[%emt 0:00:01]} 6. Bb3 {[%emt 0:00:01]} O-O {[%emt 0:00:03]} 7. Nbd2 {[%emt 0:00:01]} a5 {[%emt 0:00:02]} 8. h3 {[%emt 0:00:04]} h6 {[%emt 0:00:02]} 9. Nf1 {[%emt 0:00:01]} Ne7 {[%emt 0:00:04]} 10. Ng3 {[%emt 0:00:05]} Ng6 {[%emt 0:00:04]} 11. O-O {[%emt 0:00:02]} Bd7 {[%emt 0:00:07]} 12. Re1 {[%emt 0:00:38]} a4 {[%emt 0:00:12]} 13. Bc2 {[%emt 0:00:03]} Bb6 {[%emt 0:00:08]} 14. d4 {[%emt 0:00:07]} Re8 {[%emt 0:00:06]} 15. a3 {[%emt 0:00:24]} Qb8 {[%emt 0:00:39]} 16. Nh2 {[%emt 0:00:56]} Qa7 {[%emt 0:00:04]} 17. Be3 {[%emt 0:00:16]} Rad8 {[%emt 0:00:13]} 18. Ng4 {[%emt 0:00:12]} Nxg4 {[%emt 0:00:11]} 19. hxg4 {[%emt 0:00:01]} Qa8 {[%emt 0:00:55]} 20. Nf5 {[%emt 0:00:03]} Ne7 {[%emt 0:00:13]} 21. Qf3 {[%emt 0:00:15]} Ng6 {[%emt 0:00:09]} 22. Qh3 {[%emt 0:00:07]} exd4 {[%emt 0:00:08]} 23. cxd4 {[%emt 0:00:02]} Qc8 {[%emt 0:00:09]} 24. Rad1 {[%emt 0:00:08]} c6 {[%emt 0:00:02]} 25. Qh2 {[%emt 0:00:06]} Bc7 {[%emt 0:00:02]} 26. Qh3 {[%emt 0:00:02]} d5 {[%emt 0:00:02]} 27. e5 {[%emt 0:00:01]} Be6 {[%emt 0:00:02]} 28. Qf3 {[%emt 0:00:02]} Qd7 {[%emt 0:00:03]} 29. Qh3 {[%emt 0:00:02]} b5 {[%emt 0:00:01]} 30. Bxh6 {[%emt 0:00:02]} gxh6 {[%emt 0:00:02]} 31. Qxh6 {[%emt 0:00:01]} Bxf5 {[%emt 0:00:03]} 32. gxf5 {[%emt 0:00:02]} Qe7 {[%emt 0:00:02]} 33. fxg6 {[%emt 0:00:02]} fxg6 {[%emt 0:00:01]} 34. Qxg6+ {[%emt 0:00:01]} Qg7 {[%emt 0:00:01]} 35. Qxg7+ {[%emt 0:00:01]} Kxg7 {[%emt 0:00:01]} 36. Re3 {[%emt 0:00:01]} Rh8 {[%emt 0:00:03]} 37. Rg3+ {[%emt 0:00:02]} Kf7 {[%emt 0:00:01]} 38. Rdd3 {[%emt 0:00:01]} Rdf8 {[%emt 0:00:02]} 39. Rdf3+ {[%emt 0:00:02]} Ke8 {[%emt 0:00:01]} 40. Rxf8+ {[%emt 0:00:02]} Rxf8 {[%emt 0:00:02]} 41. Rc3 {[%emt 0:00:02]} Kd7 {[%emt 0:00:02]} 42. Bd1 {[%emt 0:00:02]} Rg8 {[%emt 0:00:03]} 43. Rf3 {[%emt 0:00:02]} Ke7 {[%emt 0:00:03]} 44. Rg3 {[%emt 0:00:02]} Rxg3 {[%emt 0:00:03]} 45. fxg3 {[%emt 0:00:01]} Bb6 {[%emt 0:00:00]} 46. Kf1 {[%emt 0:00:05]} Bxd4 {[%emt 0:00:01]} 47. b3 {[%emt 0:00:03]} axb3 {[%emt 0:00:03]} 48. Bxb3 {[%emt 0:00:02]} Bxe5 {[%emt 0:00:00]} 49. a4 {[%emt 0:00:01]} bxa4 {[%emt 0:00:02]} 50. Bxa4 {[%emt 0:00:02]} Kd6 {[%emt 0:00:05]} 51. g4 {[%emt 0:00:01]} Bf4 {[%emt 0:00:01]} 52. Ke2 {[%emt 0:00:02]} c5 {[%emt 0:00:01]} 53. Kd3 {[%emt 0:00:02]} Bg5 {[%emt 0:00:03]} 54. Bb5 {[%emt 0:00:02]} c4+ {[%emt 0:00:03]} 55. Bxc4 {[%emt 0:00:01]} dxc4+ {[%emt 0:00:00]} 56. Kxc4 {[%emt 0:00:02]} Ke5 {[%emt 0:00:01]} 57. Kd3 {[%emt 0:00:03]} Kf4 {[%emt 0:00:02]} 58. Ke2 {[%emt 0:00:02]} Kxg4 {[%emt 0:00:02]} 59. Kd3 {[%emt 0:00:02]} Kg3 {[%emt 0:00:01]} 60. Kc4 {[%emt 0:00:01]} Kxg2 {[%emt 0:00:01]} 1/2-1/2

[Event "Queens Festival Europe 2022"]
[Site "Tornelo"]
[Date "2022.06.19"]
[Round "1.4"]
[White "Rybackova, Lucie"]
[Black "Vukosavljevic, Tatjana"]
[Result "1-0"]
[ECO "D20"]
[WhiteElo "1696"]
[BlackElo "1758"]
[Annotator "NA RC"]
[PlyCount "71"]
[EventDate "2022.06.19"]
[EventType "swiss"]
[EventCountry "NET"]
[SourceTitle "playchess.com"]
[Source "ChessBase"]
[SourceQuality "1"]
[TimeControl "180+2"]

1. d4 {[%emt 0:00:02]} d5 {[%emt 0:00:07]} 2. c4 {[%emt 0:00:05]} dxc4 {[%emt 0:00:01]} 3. e4 {[%emt 0:00:03]} e6 {[%emt 0:00:04]} 4. Bxc4 {[%emt 0:00:03]} c5 {[%emt 0:00:06]} 5. Nf3 {[%emt 0:00:06]} Nf6 {[%emt 0:00:05]} 6. Nc3 {[%emt 0:00:03]} a6 {[%emt 0:00:44]} 7. Bg5 {[%emt 0:00:25]} Be7 {[%emt 0:00:12]} 8. dxc5 {[%emt 0:00:23]} Qxd1+ {[%emt 0:00:16]} 9. Rxd1 {[%emt 0:00:03]} Bxc5 {[%emt 0:00:16]} 10. Bxf6 {[%emt 0:00:05]} gxf6 {[%emt 0:00:02]} 11. O-O {[%emt 0:00:03]} Nc6 {[%emt 0:00:05]} 12. a3 {[%emt 0:00:09]} b5 {[%emt 0:00:05]} 13. Be2 {[%emt 0:00:06]} Bb7 {[%emt 0:00:03]} 14. b4 {[%emt 0:00:03]} Ba7 {[%emt 0:00:05]} 15. Rd2 {[%emt 0:00:42]} Ke7 {[%emt 0:00:11]} 16. Rfd1 {[%emt 0:00:03]} Rad8 {[%emt 0:00:02]} 17. a4 {[%emt 0:00:32]} Nxb4 {[%emt 0:00:41]} 18. axb5 {[%emt 0:00:04]} axb5 {[%emt 0:00:05]} 19. Nxb5 {[%emt 0:00:22]} Bb8 {[%emt 0:00:20]} 20. Nc3 {[%emt 0:00:05]} Rxd2 {[%emt 0:00:05]} 21. Rxd2 {[%emt 0:00:01]} Rd8 {[%emt 0:00:03]} 22. Rxd8 {[%emt 0:00:03]} Kxd8 {[%emt 0:00:02]} 23. Nd4 {[%emt 0:00:04]} Nc6 {[%emt 0:00:03]} 24. Nxc6+ {[%emt 0:00:02]} Bxc6 {[%emt 0:00:02]} 25. f3 {[%emt 0:00:01]} Ba7+ {[%emt 0:00:03]} 26. Kf1 {[%emt 0:00:02]} Kd7 {[%emt 0:00:01]} 27. Bb5 {[%emt 0:00:02]} Kd6 {[%emt 0:00:02]} 28. Bxc6 {[%emt 0:00:02]} Kxc6 {[%emt 0:00:01]} 29. Ke2 {[%emt 0:00:01]} Kc5 {[%emt 0:00:03]} 30. Kd3 {[%emt 0:00:02]} Bb6 {[%emt 0:00:02]} 31. Na4+ {[%emt 0:00:02]} Kb5 {[%emt 0:00:02]} 32. Nxb6 {[%emt 0:00:02]} Kxb6 {[%emt 0:00:01]} 33. Kd4 {[%emt 0:00:03]} Kb5 {[%emt 0:00:03]} 34. f4 {[%emt 0:00:05]} Kc6 {[%emt 0:00:02]} 35. f5 {[%emt 0:00:04]} e5+ {[%emt 0:00:03]} 36. Kc4 {[%emt 0:00:02]} 1-0

[Event "Queens Festival Europe 2022"]
[Site "Tornelo"]
[Date "2022.06.19"]
[Round "1.4"]
[White "Robson, Caroline J"]
[Black "Ostafiev, Cristina"]
[Result "0-1"]
[ECO "C70"]
[WhiteElo "1546"]
[BlackElo "1173"]
[Annotator "NA RC"]
[PlyCount "44"]
[EventDate "2022.06.19"]
[EventType "swiss"]
[EventCountry "NET"]
[SourceTitle "playchess.com"]
[Source "ChessBase"]
[SourceQuality "1"]
[TimeControl "180+2"]

1. e4 {[%emt 0:00:02]} e5 {[%emt 0:00:07]} 2. Nf3 {[%emt 0:00:04]} Nc6 {[%emt 0:00:11]} 3. Bb5 {[%emt 0:00:05]} Bc5 {[%emt 0:00:03]} 4. O-O {[%emt 0:00:04]} a6 {[%emt 0:00:06]} 5. Ba4 {[%emt 0:00:04]} Qf6 {[%emt 0:00:09]} 6. Re1 {[%emt 0:00:07]} g5 {[%emt 0:00:24]} 7. d3 {[%emt 0:00:27]} g4 {[%emt 0:00:08]} 8. Bg5 {[%emt 0:00:16]} Qg6 {[%emt 0:00:03]} 9. Bxc6 {[%emt 0:00:27]} dxc6 {[%emt 0:00:30]} 10. Nbd2 {[%emt 0:00:31]} gxf3 {[%emt 0:00:06]} 11. Nxf3 {[%emt 0:00:04]} Bg4 {[%emt 0:00:07]} 12. h3 {[%emt 0:00:23]} Bxf3 {[%emt 0:00:04]} 13. Qxf3 {[%emt 0:00:03]} Qxg5 {[%emt 0:00:03]} 14. c3 {[%emt 0:00:04]} O-O-O {[%emt 0:00:04]} 15. b4 {[%emt 0:00:11]} Bb6 {[%emt 0:00:05]} 16. Rac1 {[%emt 0:00:09]} f5 {[%emt 0:00:04]} 17. exf5 {[%emt 0:00:04]} Nh6 {[%emt 0:00:10]} 18. Rxe5 {[%emt 0:00:06]} Qxc1+ {[%emt 0:00:09]} 19. Kh2 {[%emt 0:00:04]} Rhf8 {[%emt 0:00:17]} 20. f6 {[%emt 0:00:13]} Qc2 {[%emt 0:00:15]} 21. Qg3 {[%emt 0:00:10]} Rxf6 {[%emt 0:00:09]} 22. Re7 {[%emt 0:00:05]} Rxf2 {[%emt 0:00:05]} 0-1

[Event "Queens Festival Europe 2022"]
[Site "Tornelo"]
[Date "2022.06.19"]
[Round "1.5"]
[White "Amrayeva, Aytan"]
[Black "Smith, Olivia"]
[Result "1-0"]
[ECO "A51"]
[WhiteElo "2143"]
[BlackElo "2039"]
[Annotator "NA RC"]
[PlyCount "171"]
[EventDate "2022.06.19"]
[EventType "swiss"]
[EventCountry "NET"]
[SourceTitle "playchess.com"]
[Source "ChessBase"]
[SourceQuality "1"]
[TimeControl "180+2"]

1. d4 {[%emt 0:00:02]} Nf6 {[%emt 0:00:23]} 2. c4 {[%emt 0:00:03]} e5 {[%emt 0:00:03]} 3. d5 {[%emt 0:00:02]} Bc5 {[%emt 0:00:04]} 4. Nc3 {[%emt 0:00:05]} a5 {[%emt 0:00:03]} 5. Bg5 {[%emt 0:00:02]} h6 {[%emt 0:00:10]} 6. Bh4 {[%emt 0:00:02]} d6 {[%emt 0:00:10]} 7. e3 {[%emt 0:00:03]} Bf5 {[%emt 0:00:16]} 8. Bd3 {[%emt 0:00:03]} Qd7 {[%emt 0:00:09]} 9. Qc2 {[%emt 0:00:04]} Bxd3 {[%emt 0:00:10]} 10. Qxd3 {[%emt 0:00:02]} Qg4 {[%emt 0:00:32]} 11. Bg3 {[%emt 0:00:07]} Nbd7 {[%emt 0:00:10]} 12. h3 {[%emt 0:00:04]} Qg6 {[%emt 0:00:07]} 13. Qxg6 {[%emt 0:00:02]} fxg6 {[%emt 0:00:02]} 14. Nge2 {[%emt 0:00:03]} O-O {[%emt 0:00:13]} 15. O-O-O {[%emt 0:00:05]} Nb6 {[%emt 0:00:22]} 16. b3 {[%emt 0:00:12]} a4 {[%emt 0:00:01]} 17. Kb2 {[%emt 0:00:05]} axb3 {[%emt 0:00:05]} 18. axb3 {[%emt 0:00:02]} Nh5 {[%emt 0:00:08]} 19. Rhf1 {[%emt 0:00:04]} Ba3+ {[%emt 0:00:07]} 20. Kc2 {[%emt 0:00:02]} Bb4 {[%emt 0:00:03]} 21. Bh2 {[%emt 0:00:28]} Nf6 {[%emt 0:00:09]} 22. Ra1 {[%emt 0:00:06]} Nfd7 {[%emt 0:00:02]} 23. f3 {[%emt 0:00:04]} Nc5 {[%emt 0:00:02]} 24. Nb5 {[%emt 0:00:05]} Rxa1 {[%emt 0:00:07]} 25. Rxa1 {[%emt 0:00:03]} Ra8 {[%emt 0:00:03]} 26. Rxa8+ {[%emt 0:00:18]} Nxa8 {[%emt 0:00:01]} 27. Bg1 {[%emt 0:00:09]} Kf7 {[%emt 0:00:02]} 28. e4 {[%emt 0:00:02]} Ke7 {[%emt 0:00:02]} 29. Nc1 {[%emt 0:00:02]} c6 {[%emt 0:00:02]} 30. dxc6 {[%emt 0:00:03]} bxc6 {[%emt 0:00:01]} 31. Nc3 {[%emt 0:00:04]} Nc7 {[%emt 0:00:03]} 32. Bxc5 {[%emt 0:00:07]} Bxc5 {[%emt 0:00:01]} 33. Nd3 {[%emt 0:00:03]} Na6 {[%emt 0:00:02]} 34. Na4 {[%emt 0:00:04]} Bg1 {[%emt 0:00:04]} 35. b4 {[%emt 0:00:02]} g5 {[%emt 0:00:02]} 36. Kb3 {[%emt 0:00:02]} Kd7 {[%emt 0:00:02]} 37. Nab2 {[%emt 0:00:03]} Kc7 {[%emt 0:00:02]} 38. Nd1 {[%emt 0:00:04]} Bd4 {[%emt 0:00:02]} 39. N1f2 {[%emt 0:00:02]} h5 {[%emt 0:00:01]} 40. Nh1 {[%emt 0:00:12]} g6 {[%emt 0:00:02]} 41. Ng3 {[%emt 0:00:04]} Nb8 {[%emt 0:00:01]} 42. Ne2 {[%emt 0:00:02]} Ba7 {[%emt 0:00:03]} 43. c5 {[%emt 0:00:06]} Nd7 {[%emt 0:00:03]} 44. Kc4 {[%emt 0:00:02]} Bb8 {[%emt 0:00:03]} 45. Nc3 {[%emt 0:00:13]} Nf6 {[%emt 0:00:02]} 46. cxd6+ {[%emt 0:00:09]} Kxd6 {[%emt 0:00:01]} 47. Na4 {[%emt 0:00:02]} Bc7 {[%emt 0:00:02]} 48. Nac5 {[%emt 0:00:02]} Bb6 {[%emt 0:00:02]} 49. Nb7+ {[%emt 0:00:02]} Kc7 {[%emt 0:00:02]} 50. Nbc5 {[%emt 0:00:01]} Kd6 {[%emt 0:00:01]} 51. Na4 {[%emt 0:00:02]} Bc7 {[%emt 0:00:03]} 52. Nc3 {[%emt 0:00:04]} Nd7 {[%emt 0:00:03]} 53. Na4 {[%emt 0:00:05]} Nb6+ {[%emt 0:00:01]} 54. Nxb6 {[%emt 0:00:01]} Bxb6 {[%emt 0:00:01]} 55. Nc1 {[%emt 0:00:02]} Be3 {[%emt 0:00:02]} 56. Nb3 {[%emt 0:00:03]} Bb6 {[%emt 0:00:03]} 57. Nd2 {[%emt 0:00:02]} Be3 {[%emt 0:00:02]} 58. Nb1 {[%emt 0:00:02]} Bd4 {[%emt 0:00:02]} 59. Na3 {[%emt 0:00:03]} Bf2 {[%emt 0:00:02]} 60. Nc2 {[%emt 0:00:08]} Bg1 {[%emt 0:00:04]} 61. Kb3 {[%emt 0:00:02]} Bf2 {[%emt 0:00:02]} 62. Ka4 {[%emt 0:00:02]} Bg1 {[%emt 0:00:02]} 63. Ka5 {[%emt 0:00:03]} Bf2 {[%emt 0:00:02]} 64. Ka6 {[%emt 0:00:02]} Bg1 {[%emt 0:00:01]} 65. Kb7 {[%emt 0:00:01]} Bf2 {[%emt 0:00:03]} 66. Na3 {[%emt 0:00:03]} c5 {[%emt 0:00:02]} 67. Nc4+ {[%emt 0:00:02]} Ke6 {[%emt 0:00:02]} 68. b5 {[%emt 0:00:01]} Be1 {[%emt 0:00:02]} 69. b6 {[%emt 0:00:02]} Kd7 {[%emt 0:00:02]} 70. Nxe5+ {[%emt 0:00:05]} Kd6 {[%emt 0:00:01]} 71. Nc4+ {[%emt 0:00:03]} Kd7 {[%emt 0:00:01]} 72. Ka7 {[%emt 0:00:02]} Kc6 {[%emt 0:00:02]} 73. b7 {[%emt 0:00:02]} Bg3 {[%emt 0:00:01]} 74. b8=Q {[%emt 0:00:08]} Bxb8+ {[%emt 0:00:02]} 75. Kxb8 {[%emt 0:00:01]} Kb5 {[%emt 0:00:01]} 76. Nd6+ {[%emt 0:00:03]} Kc6 {[%emt 0:00:01]} 77. Nc4 {[%emt 0:00:03]} Kb5 {[%emt 0:00:02]} 78. Ne5 {[%emt 0:00:02]} c4 {[%emt 0:00:02]} 79. Kc7 {[%emt 0:00:04]} c3 {[%emt 0:00:01]} 80. Kd6 {[%emt 0:00:03]} c2 {[%emt 0:00:05]} 81. Nd3 {[%emt 0:00:01]} Kc4 {[%emt 0:00:01]} 82. Nc1 {[%emt 0:00:02]} Kc3 {[%emt 0:00:02]} 83. e5 {[%emt 0:00:01]} Kb2 {[%emt 0:00:01]} 84. Ne2 {[%emt 0:00:02]} c1=Q {[%emt 0:00:07]} 85. Nxc1 {[%emt 0:00:02]} Kxc1 {[%emt 0:00:01]} 86. e6 {[%emt 0:00:02]} 1-0

[Event "Queens Festival Europe 2022"]
[Site "Tornelo"]
[Date "2022.06.19"]
[Round "1.5"]
[White "Vicze, Zsofia"]
[Black "Thornton, Filipina"]
[Result "1-0"]
[ECO "B55"]
[WhiteElo "1749"]
[BlackElo "1660"]
[Annotator "NA RC"]
[PlyCount "85"]
[EventDate "2022.06.19"]
[EventType "swiss"]
[EventCountry "NET"]
[SourceTitle "playchess.com"]
[Source "ChessBase"]
[SourceQuality "1"]
[TimeControl "180+2"]

1. e4 {[%emt 0:00:02]} c5 {[%emt 0:00:09]} 2. Nf3 {[%emt 0:00:03]} d6 {[%emt 0:00:02]} 3. d4 {[%emt 0:00:03]} cxd4 {[%emt 0:00:01]} 4. Nxd4 {[%emt 0:00:02]} Nf6 {[%emt 0:00:01]} 5. f3 {[%emt 0:00:02]} a6 {[%emt 0:00:03]} 6. c4 {[%emt 0:00:02]} e6 {[%emt 0:00:02]} 7. Nc3 {[%emt 0:00:04]} Be7 {[%emt 0:00:02]} 8. Be3 {[%emt 0:00:02]} Nc6 {[%emt 0:00:07]} 9. Be2 {[%emt 0:00:02]} Bd7 {[%emt 0:00:04]} 10. O-O {[%emt 0:00:02]} O-O {[%emt 0:00:04]} 11. b3 {[%emt 0:00:02]} Nxd4 {[%emt 0:00:05]} 12. Bxd4 {[%emt 0:00:02]} Bc6 {[%emt 0:00:01]} 13. Qd3 {[%emt 0:00:05]} Rc8 {[%emt 0:00:06]} 14. Rad1 {[%emt 0:00:02]} Qc7 {[%emt 0:00:06]} 15. Bxf6 {[%emt 0:00:05]} Bxf6 {[%emt 0:00:06]} 16. Qxd6 {[%emt 0:00:02]} Qb6+ {[%emt 0:00:04]} 17. c5 {[%emt 0:00:05]} Qb4 {[%emt 0:00:04]} 18. Nb1 {[%emt 0:00:07]} Rfd8 {[%emt 0:00:04]} 19. Qg3 {[%emt 0:00:14]} Bd4+ {[%emt 0:00:14]} 20. Kh1 {[%emt 0:00:04]} Qxc5 {[%emt 0:00:05]} 21. Rc1 {[%emt 0:00:19]} Qb6 {[%emt 0:00:03]} 22. Rfd1 {[%emt 0:00:02]} Bf6 {[%emt 0:00:03]} 23. Nd2 {[%emt 0:00:06]} h6 {[%emt 0:00:15]} 24. Nc4 {[%emt 0:00:02]} Qb4 {[%emt 0:00:03]} 25. e5 {[%emt 0:00:24]} Bg5 {[%emt 0:00:05]} 26. f4 {[%emt 0:00:04]} Be7 {[%emt 0:00:01]} 27. Bf3 {[%emt 0:00:13]} Bxf3 {[%emt 0:00:09]} 28. Qxf3 {[%emt 0:00:03]} b5 {[%emt 0:00:05]} 29. Ne3 {[%emt 0:00:28]} Rxc1 {[%emt 0:00:04]} 30. Rxc1 {[%emt 0:00:02]} Qa5 {[%emt 0:00:11]} 31. h3 {[%emt 0:00:03]} Qxa2 {[%emt 0:00:03]} 32. Rc7 {[%emt 0:00:07]} Qb1+ {[%emt 0:00:08]} 33. Kh2 {[%emt 0:00:03]} Bf8 {[%emt 0:00:12]} 34. f5 {[%emt 0:00:30]} Qxb3 {[%emt 0:00:12]} 35. fxe6 {[%emt 0:00:08]} Qxe6 {[%emt 0:00:02]} 36. Ng4 {[%emt 0:00:06]} b4 {[%emt 0:00:09]} 37. Rc6 {[%emt 0:00:03]} Qe7 {[%emt 0:00:07]} 38. Rxa6 {[%emt 0:00:02]} Rd2 {[%emt 0:00:10]} 39. Rb6 {[%emt 0:00:05]} Qd7 {[%emt 0:00:05]} 40. Rb7 {[%emt 0:00:05]} Qd4 {[%emt 0:00:06]} 41. Nxh6+ {[%emt 0:00:11]} gxh6 {[%emt 0:00:06]} 42. Qxf7+ {[%emt 0:00:02]} Kh8 {[%emt 0:00:05]} 43. Qh7# {[%emt 0:00:01]} 1-0